bitfinex-derivatives/quotes_BNBF0:USTF0_20250101
["timestamp","ask_amount","ask_price","bid_price","bid_amount"]
[1735762739468,1.024,708.14,707.32,1.05569966]
[1735762740469,1.024,708.14,707.33,1.05569966]
[1735762740873,0.957,708.13,707.33,1.05569966]
[1735762744572,0.957,708.13,707.32,1.05569966]
[1735762745675,0.957,708.13,707.31,1.05569966]
[1735762747675,0.957,708.13,707.21,1.05569966]
[1735762748675,0.957,708.13,707.24,1.05569966]
[1735762749980,0.957,708.13,707.23,1.05569966]
[1735762751082,0.957,708.13,707.2,1.05569966]
[1735762752082,0.957,708.13,707.23,1.05569966]
[1735762752978,0.957,708.13,707.22,1.05569966]
[1735762754085,0.957,708.13,707.23,1.05569966]
[1735762755180,0.957,708.13,707.29,1.05569966]
[1735762756486,0.957,708.13,707.3,1.05569966]
[1735762757587,0.957,708.13,707.35,1.05569966]
[1735762759589,0.957,708.13,707.33,1.05569966]
[1735762759786,1.024,708.14,707.33,1.05569966]
[1735762759980,1.4754776,708.25,707.33,1.05569966]
[1735762760788,1.4754776,708.25,707.34,1.05569966]
[1735762761087,0.984,708.24,707.34,1.05569966]
[1735762761288,2.113,708.24,707.34,1.05569966]
[1735762761891,2.113,708.24,707.36,1.05569966]
[1735762763088,2.113,708.24,707.38,1.05569966]
[1735762764390,2.113,708.24,707.39,1.05569966]
[1735762764991,2.113,708.24,707.46,1.05569966]
[1735762765985,2.113,708.24,707.51,1.05569966]
[1735762767391,2.113,708.24,707.56,1.05569966]
[1735762768692,2.113,708.24,707.53,1.05569966]
[1735762769992,2.113,708.24,707.49,1.05569966]
[1735762771294,2.113,708.24,707.5,1.05569966]
[1735762772089,2.113,708.24,707.51,1.05569966]
[1735762773295,2.113,708.24,707.5,1.05569966]
[1735762774096,2.113,708.24,707.49,1.05569966]
[1735762774997,2.113,708.24,707.48,1.05569966]
[1735762776093,0.984,708.24,707.48,1.05569966]
[1735762776298,0.984,708.24,707.19,0.72738044]
[1735762776299,0.984,708.24,707.5,1.05569966]
[1735762777298,0.798,708.23,707.5,1.05569966]
[1735762778397,0.798,708.23,707.45,1.05569966]
[1735762779500,0.798,708.23,707.53,1.05569966]
[1735762781400,0.798,708.23,707.51,1.05569966]
[1735762782104,0.798,708.23,707.53,1.05569966]
[1735762783707,0.798,708.23,707.55,1.05569966]
[1735762784906,0.798,708.23,707.6,1.05569966]
[1735762785700,0.798,708.23,707.59,1.05569966]
[1735762786307,0.925,708.22,707.59,1.05569966]
[1735762786808,0.925,708.22,707.63,1.05569966]
[1735762788009,0.925,708.22,707.61,1.05569966]
[1735762788704,0.925,708.22,707.59,1.05569966]
[1735762790007,0.925,708.22,707.16,1.26766104]
[1735762790008,0.925,708.22,707.62,1.05569966]
[1735762790808,0.925,708.22,707.19,1.26766104]
[1735762790809,0.925,708.22,707.58,1.05569966]
[1735762793008,0.925,708.22,707.54,1.05569966]
[1735762794114,0.925,708.22,707.55,1.05569966]
[1735762795118,0.925,708.22,707.54,1.05569966]
[1735762796112,0.925,708.22,707.5,1.05569966]
[1735762797317,0.925,708.22,707.43,1.05569966]
[1735762798516,0.925,708.22,707.41,1.05569966]
[1735762800620,0.925,708.22,707.4,1.05569966]
[1735762802821,0.925,708.22,707.42,1.05569966]
[1735762804025,0.925,708.22,707.4,1.05569966]
[1735762805322,0.798,708.23,707.39,1.05569966]
[1735762806021,0.798,708.23,707.35,1.05569966]
[1735762806423,0.883,708.22,707.35,1.05569966]
[1735762807418,1.129,708.21,707.35,1.05569966]
[1735762808119,1.129,708.21,707.36,1.05569966]
[1735762809223,1.129,708.21,707.35,1.05569966]
[1735762811421,1.129,708.21,707.34,1.05569966]
[1735762812428,1.129,708.21,707.33,1.05569966]
[1735762814628,1.129,708.21,707.32,1.05569966]
[1735762815731,1.129,708.21,707.28,1.05569966]
[1735762816631,1.129,708.21,707.23,1.05569966]
[1735762817430,0.26009844,708.2,707.23,1.05569966]
[1735762817626,0.26009844,708.2,707.21,1.05569966]
[1735762817830,0.260113,708.19,707.21,1.05569966]
[1735762818132,0.260113,708.18,707.21,1.05569966]
[1735762818324,0.260113,708.2,707.21,1.05569966]
[1735762818525,0.260118,708.19,707.21,1.05569966]
[1735762818730,0.260118,708.18,707.21,1.05569966]
[1735762819638,0.260118,708.18,706.92,1.0563842]
[1735762819639,0.260118,708.18,707.19,1.05569966]
[1735762819836,2.3997696,708.19,707.19,1.05569966]
[1735762820630,0.787,708.18,707.19,1.05569966]
[1735762821937,0.787,708.18,706.86,1.0563842]
[1735762821938,0.787,708.18,707.2,1.05569966]
[1735762823038,0.787,708.18,707.18,1.05569966]
[1735762823939,0.787,708.18,707.15,1.05569966]
[1735762825238,0.787,708.18,707.16,1.05569966]
[1735762826340,0.787,708.18,707.06,1.05569966]
[1735762827539,0.787,708.18,707.07,1.05569966]
[1735762828138,0.787,708.18,707.08,1.05569966]
[1735762829140,0.787,708.18,707.04,1.05569966]
[1735762830141,0.787,708.18,707.09,1.05569966]
[1735762831942,0.787,708.18,706.22,2.15678442]
[1735762831943,0.787,708.18,707.11,1.05569966]
[1735762832837,0.787,708.18,707.09,1.05569966]
[1735762833942,0.787,708.18,707.08,1.05569966]
[1735762835236,0.787,708.18,706.25,2.15678442]
[1735762835237,0.787,708.18,707.07,1.05569966]
[1735762836241,0.787,708.18,707.15,1.05569966]
[1735762837336,0.787,708.18,706.43,2.15678442]
[1735762837337,0.787,708.18,707.18,1.05569966]
[1735762837939,0.858,708.17,707.18,1.05569966]
[1735762839239,0.858,708.17,707.2,1.05569966]
[1735762840446,0.858,708.17,707.25,1.05569966]
[1735762840945,0.26012442,708.16,707.25,1.05569966]
[1735762841541,0.858,708.17,707.25,1.05569966]
[1735762841845,0.26012422,708.16,707.25,1.05569966]
[1735762842040,0.858,708.17,707.25,1.05569966]
[1735762842845,0.858,708.17,707.28,1.05569966]
[1735762844050,0.786,708.16,707.31,1.05569966]
[1735762845348,0.786,708.16,706.74,2.15678442]
[1735762845349,0.786,708.16,707.33,1.05569966]
[1735762847350,0.786,708.16,707.3,1.05569966]
[1735762848549,0.786,708.16,707.34,1.05569966]
[1735762849646,0.786,708.16,707.32,1.05569966]
[1735762850942,0.786,708.16,707.3,1.05569966]
[1735762852251,0.786,708.16,707.29,1.05569966]
[1735762853351,0.786,708.16,707.32,1.05569966]
[1735762854453,0.786,708.16,707.3,1.05569966]
[1735762856853,0.786,708.16,707.31,1.05569966]
[1735762858053,0.786,708.16,707.3,1.05569966]
[1735762858853,0.858,708.17,707.3,1.05569966]
[1735762859250,0.858,708.17,706.62,2.15678442]
[1735762859251,0.858,708.17,707.29,1.05569966]
[1735762860150,0.921,708.16,707.29,1.05569966]
[1735762860449,0.921,708.16,707.35,1.05569966]
[1735762861755,0.921,708.16,706.74,2.15678442]
[1735762861756,0.921,708.16,707.34,1.05569966]
[1735762862055,0.948,708.15,707.34,1.05569966]
[1735762862954,0.948,708.15,707.51,1.05569966]
[1735762864355,0.948,708.15,707.47,1.05569966]
[1735762865451,0.948,708.15,707.44,1.05569966]
[1735762866551,0.948,708.15,706.85,2.15678442]
[1735762866552,0.948,708.15,707.4,1.05569966]
[1735762867659,0.948,708.15,707.37,1.05569966]
[1735762868659,0.948,708.15,706.72,2.15678442]
[1735762868660,0.948,708.15,707.38,1.05569966]
[1735762869560,0.948,708.15,707.36,1.05569966]
[1735762871158,0.948,708.15,707.37,1.05569966]
[1735762871957,0.948,708.15,707.35,1.05569966]
[1735762872856,0.948,708.15,707.34,1.05569966]
[1735762873057,0.921,708.16,707.34,1.05569966]
[1735762873963,0.921,708.16,707.31,1.05569966]
[1735762874357,1.028,708.15,707.31,1.05569966]
[1735762874862,1.028,708.15,707.32,1.05569966]
[1735762876965,1.028,708.15,707.3,1.05569966]
[1735762877963,1.028,708.15,707.31,1.05569966]
[1735762879066,1.028,708.15,707.33,1.05569966]
[1735762879861,1.028,708.15,706.7,2.15678442]
[1735762879862,1.028,708.15,707.32,1.05569966]
[1735762880767,1.028,708.15,707.09,1.0563842]
[1735762880768,1.028,708.15,707.31,1.05569966]
[1735762882164,1.028,708.15,706.81,0.72738044]
[1735762882165,1.028,708.15,707.34,1.05569966]
[1735762882964,1.028,708.15,707.35,1.05569966]
[1735762883769,1.028,708.15,707.37,1.05569966]
[1735762885166,1.028,708.15,706.91,1.26766104]
[1735762885167,1.028,708.15,707.43,1.05569966]
[1735762886170,1.129,708.14,707.47,1.05569966]
[1735762887170,1.129,708.14,707.25,1.05569966]
[1735762888571,1.129,708.14,707.26,1.05569966]
[1735762889673,1.129,708.14,707.27,1.05569966]
[1735762890975,1.129,708.14,707.25,1.05569966]
[1735762891774,1.129,708.14,707.26,1.05569966]
[1735762892876,1.129,708.14,707.28,1.05569966]
[1735762893376,0.875,708.13,707.28,1.05569966]
[1735762894076,0.875,708.13,707.32,1.05569966]
[1735762895077,0.875,708.13,707.37,1.05569966]
[1735762896577,0.875,708.13,707.51,1.05569966]
[1735762897777,0.875,708.13,707.48,1.05569966]
[1735762899077,0.875,708.13,707.47,1.05569966]
[1735762900179,0.875,708.13,707.49,1.05569966]
[1735762901378,0.875,708.13,707.51,1.05569966]
[1735762902373,0.875,708.13,707.53,1.05569966]
[1735762903280,0.875,708.13,707.52,1.05569966]
[1735762904484,0.875,708.13,707.53,1.05569966]
[1735762906087,0.875,708.13,707.52,1.05569966]
[1735762907086,0.875,708.13,707.56,1.05569966]
[1735762907483,1.015,708.12,707.56,1.05569966]
[1735762908487,1.015,708.12,707.63,1.05569966]
[1735762909389,1.015,708.12,707.61,1.05569966]
[1735762909584,0.815,708.11,707.61,1.05569966]
[1735762910893,0.815,708.11,707.57,1.05569966]
[1735762913192,0.815,708.11,706.95,2.15678442]
[1735762913193,0.815,708.11,707.56,1.05569966]
[1735762914295,0.815,708.11,707.55,1.05569966]
[1735762915494,0.815,708.11,707.56,1.05569966]
[1735762916393,0.815,708.11,707.51,1.05569966]
[1735762918791,0.815,708.11,707.53,1.05569966]
[1735762919795,0.815,708.11,707.51,1.05569966]
[1735762921493,0.815,708.11,707.56,1.05569966]
[1735762922597,0.815,708.11,707.61,1.05569966]
[1735762923796,0.815,708.11,707.65,1.05569966]
[1735762924397,0.815,708.11,707.68,1.05569966]
[1735762924808,1.015,708.12,707.68,1.05569966]
[1735762925801,1.027,708.11,707.68,1.05569966]
[1735762926999,1.027,708.11,707.05,2.15678442]
[1735762927000,1.027,708.11,707.66,1.05569966]
[1735762928201,1.027,708.11,707.65,1.05569966]
[1735762929196,1.027,708.11,707.6,1.05569966]
[1735762930299,1.027,708.11,707.58,1.05569966]
[1735762931898,1.027,708.11,707.57,1.05569966]
[1735762932801,1.027,708.11,707.52,1.05569966]
[1735762935006,1.027,708.11,707.5,1.05569966]
[1735762935904,1.027,708.11,707.46,1.05569966]
[1735762937603,1.129,708.1,707.46,1.05569966]
[1735762937801,1.129,708.1,707.48,1.05569966]
[1735762938707,1.129,708.1,706.91,1.9965137]
[1735762938708,1.129,708.1,707.46,1.05569966]
[1735762940108,1.129,708.1,707.43,1.05569966]
[1735762940909,1.129,708.1,707.48,1.05569966]
[1735762941803,1.129,708.1,707.5,1.05569966]
[1735762943111,1.129,708.1,707.48,1.05569966]
[1735762944009,1.027,708.09,707.48,1.05569966]
[1735762944205,1.027,708.09,707.55,1.05569966]
[1735762945712,1.027,708.09,707.56,1.05569966]
[1735762948013,1.027,708.09,707.0,0.72885266]
[1735762948014,1.027,708.09,707.55,1.05569966]
[1735762948908,1.027,708.09,707.53,1.05569966]
[1735762950015,1.027,708.09,707.55,1.05569966]
[1735762952113,1.027,708.09,707.6,1.05569966]
[1735762953413,1.027,708.09,707.62,1.05569966]
[1735762954313,1.027,708.09,707.64,1.05569966]
[1735762955714,1.027,708.09,707.63,1.05569966]
[1735762956911,1.027,708.09,707.58,1.05569966]
[1735762957920,1.027,708.09,707.56,1.05569966]
[1735762959316,1.027,708.09,707.58,1.05569966]
[1735762959913,1.007,708.08,707.58,1.05569966]
[1735762960118,1.007,708.08,707.38,1.0563842]
[1735762960119,1.007,708.08,707.53,1.05569966]
[1735762963523,1.007,708.08,707.07,1.26766104]
[1735762963524,1.007,708.08,707.55,1.05569966]
[1735762964720,1.007,708.08,707.53,1.05569966]
[1735762966625,1.007,708.08,707.51,1.05569966]
[1735762969925,1.007,708.08,707.49,1.05569966]
[1735762971326,1.007,708.08,707.51,1.05569966]
[1735762972222,1.007,708.08,707.5,1.05569966]
[1735762974728,1.007,708.08,707.49,1.05569966]
[1735762975327,1.027,708.07,707.49,1.05569966]
[1735762975526,1.027,708.07,706.98,0.72885266]
[1735762975527,1.027,708.07,707.51,1.05569966]
[1735762977528,1.027,708.07,707.0,0.72885266]
[1735762977529,1.027,708.07,707.52,1.05569966]
[1735762979733,1.027,708.07,707.57,1.05569966]
[1735762980929,1.027,708.07,707.05,2.15678442]
[1735762980930,1.027,708.07,707.58,1.05569966]
[1735762981937,1.027,708.07,707.59,1.05569966]
[1735762983136,1.027,708.07,707.58,1.05569966]
[1735762984034,1.027,708.07,707.59,1.05569966]
[1735762985635,1.027,708.07,707.6,1.05569966]
[1735762986939,1.027,708.07,707.61,1.05569966]
[1735762988143,0.865,708.06,707.61,1.05569966]
[1735762989543,0.865,708.06,707.64,1.05569966]
[1735762990444,0.865,708.06,707.21,1.26766104]
[1735762990445,0.865,708.06,707.65,1.05569966]
[1735762991538,0.865,708.06,707.67,1.05569966]
[1735762993038,0.865,708.06,707.68,1.05569966]
[1735762993441,1.027,708.05,707.68,1.05569966]
[1735762994047,1.027,708.05,707.67,1.05569966]
[1735762995348,1.027,708.05,707.39,1.0563842]
[1735762995349,1.027,708.05,707.65,1.05569966]
[1735762997755,1.027,708.05,707.64,1.05569966]
[1735762998853,1.027,708.05,707.65,1.05569966]
[1735762999753,1.027,708.05,707.66,1.05569966]
[1735763001654,1.027,708.05,707.65,1.05569966]
[1735763002956,1.027,708.05,707.46,1.0563842]
[1735763002957,1.027,708.05,707.64,1.05569966]
[1735763004056,1.027,708.05,707.65,1.05569966]
[1735763005155,1.027,708.05,707.66,1.05569966]
[1735763006656,1.027,708.05,707.61,1.05569966]
[1735763007761,1.027,708.05,707.62,1.05569966]
[1735763008561,1.027,708.05,707.67,1.05569966]
[1735763009561,1.027,708.05,707.07,2.15678442]
[1735763009562,1.027,708.05,707.68,1.05569966]
[1735763012364,1.027,708.05,707.44,1.0563842]
[1735763012365,1.027,708.05,707.67,1.05569966]
[1735763012565,0.865,708.06,707.67,1.05569966]
[1735763013565,0.865,708.06,707.63,1.05569966]
[1735763013867,0.935,708.05,707.63,1.05569966]
[1735763014566,0.935,708.05,707.62,1.05569966]
[1735763016861,0.935,708.05,707.63,1.05569966]
[1735763017866,0.935,708.05,707.39,1.0563842]
[1735763017867,0.935,708.05,707.62,1.05569966]
[1735763018265,0.936,708.04,707.62,1.05569966]
[1735763019166,0.936,708.04,707.61,1.05569966]
[1735763020067,0.936,708.04,707.57,1.05569966]
[1735763021270,0.936,708.04,707.55,1.05569966]
[1735763022070,0.936,708.04,707.54,1.05569966]
[1735763025474,0.936,708.04,707.56,1.05569966]
[1735763026471,0.936,708.04,707.57,1.05569966]
[1735763028672,0.936,708.04,707.56,1.05569966]
[1735763029771,0.936,708.04,707.57,1.05569966]
[1735763030773,0.936,708.04,707.64,1.05569966]
[1735763033371,0.936,708.04,707.62,1.05569966]
[1735763034068,0.936,708.04,707.63,1.05569966]
[1735763034472,0.935,708.05,707.63,1.05569966]
[1735763034778,1.47529517,708.24,707.63,1.05569966]
[1735763035176,1.47529517,708.24,707.64,1.05569966]
[1735763035472,1.102,708.23,707.64,1.05569966]
[1735763035975,1.027,708.22,707.64,1.05569966]
[1735763036171,1.027,708.22,707.63,1.05569966]
[1735763037179,1.027,708.22,707.59,1.05569966]
[1735763038480,1.027,708.22,707.6,1.05569966]
[1735763039281,1.027,708.22,707.62,1.05569966]
[1735763041684,1.027,708.22,707.6,1.05569966]
[1735763043284,1.027,708.22,707.66,1.05569966]
[1735763044086,1.027,708.22,707.65,1.05569966]
[1735763045179,1.027,708.22,707.66,1.05569966]
[1735763046194,1.027,708.22,707.67,1.05569966]
[1735763047187,1.027,708.22,707.17,1.26766104]
[1735763047188,1.027,708.22,707.7,1.05569966]
[1735763048289,1.027,708.22,707.71,1.05569966]
[1735763048685,1.129,708.21,707.71,1.05569966]
[1735763049589,1.129,708.21,707.18,2.15678442]
[1735763049590,1.129,708.21,707.75,1.05569966]
[1735763050795,1.129,708.21,707.71,1.05569966]
[1735763051693,1.129,708.21,707.73,1.05569966]
[1735763054692,1.129,708.21,707.77,1.05569966]
[1735763055989,1.129,708.21,707.73,1.05569966]
[1735763056892,1.129,708.21,707.62,1.05569966]
[1735763057696,1.129,708.21,707.6,1.05569966]
[1735763058088,1.026,708.2,707.6,1.05569966]
[1735763058691,1.026,708.2,707.61,1.05569966]
[1735763059695,1.026,708.2,707.62,1.05569966]
[1735763060591,1.026,708.2,707.6,1.05569966]
[1735763061496,1.026,708.2,707.59,1.05569966]
[1735763064605,1.026,708.2,706.98,1.26766104]
[1735763064606,1.026,708.2,707.6,1.05569966]
[1735763066199,1.026,708.2,706.98,1.26766104]
[1735763066200,1.026,708.2,707.57,1.05569966]
[1735763067504,1.026,708.2,707.61,1.05569966]
[1735763068309,1.026,708.2,707.64,1.05569966]
[1735763069408,1.026,708.2,707.56,1.05569966]
[1735763070613,1.026,708.2,706.89,2.15678442]
[1735763070614,1.026,708.2,707.54,1.05569966]
[1735763073010,0.85,708.19,707.54,1.05569966]
[1735763073814,0.85,708.19,707.53,1.05569966]
[1735763076411,0.908,708.18,707.52,1.05569966]
[1735763078310,0.908,708.18,707.28,1.0563842]
[1735763078311,0.908,708.18,707.51,1.05569966]
[1735763079519,0.908,708.18,707.52,1.05569966]
[1735763081623,0.908,708.18,707.5,1.05569966]
[1735763082620,0.908,708.18,707.55,1.05569966]
[1735763083524,0.908,708.18,707.56,1.05569966]
[1735763084423,0.908,708.18,707.37,1.0563842]
[1735763084424,0.908,708.18,707.55,1.05569966]
[1735763085423,0.90000023,708.18,707.55,1.05569966]
[1735763087523,0.90000023,708.18,707.53,1.05569966]
[1735763088732,0.90000023,708.18,707.56,1.05569966]
[1735763090530,0.90000023,708.18,707.43,1.05569966]
[1735763091534,0.90000023,708.18,707.38,1.05569966]
[1735763092634,0.90000023,708.18,707.35,1.05569966]
[1735763093528,0.90000023,708.18,706.72,2.15678442]
[1735763093529,0.90000023,708.18,707.33,1.05569966]
[1735763094637,0.90000023,708.18,707.22,1.05569966]
[1735763095633,0.90000023,708.18,707.24,1.05569966]
[1735763097939,0.90000023,708.18,707.27,1.05569966]
[1735763098940,0.90000023,708.18,707.18,1.05569966]
[1735763100140,1.129,708.17,707.18,1.05569966]
[1735763100340,1.129,708.17,707.16,1.05569966]
[1735763101238,1.129,708.17,707.15,1.05569966]
[1735763102441,1.129,708.17,707.16,1.05569966]
[1735763103438,1.129,708.17,706.25,2.15678442]
[1735763103439,1.129,708.17,707.11,1.05569966]
[1735763103641,0.26011232,708.16,707.11,1.05569966]
[1735763104146,1.129,708.17,707.11,1.05569966]
[1735763104342,1.47588435,708.15,707.11,1.05569966]
[1735763104742,1.47588435,708.15,707.24,1.05569966]
[1735763105743,1.47588435,708.15,707.27,1.05569966]
[1735763106843,1.47588435,708.15,707.21,1.05569966]
[1735763107643,0.991,708.14,707.21,1.05569966]
[1735763107842,0.991,708.14,707.18,1.05569966]
[1735763108742,0.991,708.14,706.82,1.0563842]
[1735763108743,0.991,708.14,707.1,1.05569966]
[1735763110949,0.991,708.14,707.11,1.05569966]
[1735763112049,0.991,708.14,707.1,1.05569966]
[1735763113346,0.991,708.14,706.82,1.0563842]
[1735763113347,0.991,708.14,707.09,1.05569966]
[1735763114548,0.991,708.14,706.89,1.05569966]
[1735763116253,0.991,708.14,706.9,1.05569966]
[1735763117361,0.991,708.14,706.93,1.05569966]
[1735763118261,0.991,708.14,706.9,1.05569966]
[1735763119262,0.991,708.14,706.89,1.05569966]
[1735763120465,0.991,708.14,706.88,1.05569966]
[1735763121864,0.991,708.14,706.95,1.05569966]
[1735763122662,0.991,708.14,707.03,1.05569966]
[1735763123767,0.991,708.14,706.67,1.0563842]
[1735763123768,0.991,708.14,707.05,1.05569966]
[1735763125365,0.919,708.13,707.05,1.05569966]
[1735763125968,0.919,708.13,707.1,1.05569966]
[1735763126868,0.919,708.13,707.12,1.05569966]
[1735763128164,0.919,708.13,707.14,1.05569966]
[1735763129066,0.919,708.13,707.12,1.05569966]
[1735763130271,0.919,708.13,707.16,1.05569966]
[1735763131464,0.919,708.13,706.25,2.15678442]
[1735763131465,0.919,708.13,707.24,1.05569966]
[1735763132662,0.919,708.13,707.25,1.05569966]
[1735763133469,0.919,708.13,707.33,1.05569966]
[1735763133969,0.858,708.12,707.33,1.05569966]
[1735763134669,0.858,708.12,707.09,1.0563842]
[1735763134670,0.858,708.12,707.34,1.05569966]
[1735763135770,0.858,708.12,707.36,1.05569966]
[1735763136872,0.858,708.12,707.38,1.05569966]
[1735763137972,0.858,708.12,707.37,1.05569966]
[1735763139076,0.858,708.12,707.4,1.05569966]
[1735763140273,0.858,708.12,707.35,1.05569966]
[1735763140776,0.892,708.11,707.35,1.05569966]
[1735763141470,0.892,708.11,707.42,1.05569966]
[1735763142676,0.892,708.11,707.43,1.05569966]
[1735763143879,0.892,708.11,707.45,1.05569966]
[1735763144974,0.892,708.11,707.26,1.0563842]
[1735763144975,0.892,708.11,707.42,1.05569966]
[1735763146975,0.892,708.11,707.39,1.05569966]
[1735763148183,0.892,708.11,707.4,1.05569966]
[1735763149281,0.892,708.11,707.38,1.05569966]
[1735763150280,0.892,708.11,707.39,1.05569966]
[1735763153084,0.892,708.11,707.42,1.05569966]
[1735763153789,0.858,708.12,707.42,1.05569966]
[1735763154281,0.858,708.12,706.8,2.15678442]
[1735763154282,0.858,708.12,707.43,1.05569966]
[1735763154884,0.893,708.11,707.43,1.05569966]
[1735763155085,0.893,708.11,707.47,1.05569966]
[1735763156387,0.893,708.11,707.49,1.05569966]
[1735763158487,0.893,708.11,707.47,1.05569966]
[1735763159395,0.893,708.11,706.87,2.15678442]
[1735763159396,0.893,708.11,707.51,1.05569966]
[1735763160696,0.893,708.11,707.53,1.05569966]
[1735763162895,0.893,708.11,707.49,1.05569966]
[1735763163096,1.018,708.1,707.49,1.05569966]
[1735763163798,1.018,708.1,707.5,1.05569966]
[1735763164891,1.018,708.1,707.53,1.05569966]
[1735763165999,1.018,708.1,707.55,1.05569966]
[1735763167198,1.018,708.1,707.58,1.05569966]
[1735763168402,1.018,708.1,707.51,1.05569966]
[1735763169402,1.018,708.1,707.15,1.0563842]
[1735763169403,1.018,708.1,707.52,1.05569966]
[1735763170505,1.018,708.1,707.49,1.05569966]
[1735763171509,1.018,708.1,707.47,1.05569966]
[1735763172404,1.018,708.1,707.48,1.05569966]
[1735763173709,1.018,708.1,707.47,1.05569966]
[1735763174804,1.018,708.1,707.41,1.05569966]
[1735763176111,1.018,708.1,707.52,1.05569966]
[1735763178313,1.018,708.1,707.54,1.05569966]
[1735763179716,1.018,708.1,707.37,1.05569966]
[1735763181618,1.018,708.1,706.5,2.15678442]
[1735763181619,1.018,708.1,707.41,1.05569966]
[1735763182519,1.018,708.1,707.45,1.05569966]
[1735763183823,1.018,708.1,707.46,1.05569966]
[1735763185022,0.838,708.09,707.46,1.05569966]
[1735763185222,0.838,708.09,706.6,2.15678442]
[1735763185223,0.838,708.09,707.45,1.05569966]
[1735763186321,0.838,708.09,707.46,1.05569966]
[1735763187526,0.838,708.09,707.45,1.05569966]
[1735763188920,0.838,708.09,707.48,1.05569966]
[1735763190125,0.838,708.09,707.57,1.05569966]
[1735763191128,0.838,708.09,706.87,2.15678442]
[1735763191129,0.838,708.09,707.63,1.05569966]
[1735763192126,0.838,708.09,707.65,1.05569966]
[1735763192928,0.838,708.09,707.64,1.05569966]
[1735763194329,0.838,708.09,707.68,1.05569966]
[1735763194330,1.017,708.08,707.68,1.05569966]
[1735763195131,1.017,708.08,707.69,1.05569966]
[1735763196230,1.017,708.08,707.7,1.05569966]
[1735763197434,1.017,708.08,707.71,1.05569966]
[1735763198834,1.017,708.08,707.65,1.05569966]
[1735763202029,1.017,708.08,707.66,1.05569966]
[1735763203234,1.017,708.08,707.65,1.05569966]
[1735763204234,1.017,708.08,707.66,1.05569966]
[1735763205128,1.017,708.08,707.63,1.05569966]
[1735763207335,1.017,708.08,706.99,2.15678442]
[1735763207336,1.017,708.08,707.65,1.05569966]
[1735763208129,1.017,708.08,707.67,1.05569966]
[1735763209232,1.017,708.08,707.69,1.05569966]
[1735763210539,1.017,708.08,707.65,1.05569966]
[1735763211640,1.017,708.08,707.66,1.05569966]
[1735763214135,1.017,708.08,707.68,1.05569966]
[1735763214335,1.101,708.07,707.68,1.05569966]
[1735763215441,1.101,708.07,707.69,1.05569966]
[1735763216241,1.101,708.07,707.68,1.05569966]
[1735763216641,0.985,708.06,707.68,1.05569966]
[1735763220246,0.985,708.06,707.7,1.05569966]
[1735763221347,0.985,708.06,707.69,1.05569966]
[1735763223749,0.985,708.06,706.95,2.15678442]
[1735763223750,0.985,708.06,707.67,1.05569966]
[1735763224948,0.985,708.06,707.68,1.05569966]
[1735763225848,0.985,708.06,707.66,1.05569966]
[1735763226846,0.985,708.06,707.64,1.05569966]
[1735763228048,0.985,708.06,707.65,1.05569966]
[1735763229049,0.985,708.06,707.66,1.05569966]
[1735763229653,1.101,708.07,707.66,1.05569966]
[1735763229850,1.101,708.07,707.69,1.05569966]
[1735763230755,1.017,708.06,707.69,1.05569966]
[1735763232254,1.017,708.06,707.71,1.05569966]
[1735763233150,1.017,708.06,707.7,1.05569966]
[1735763234056,1.017,708.06,707.71,1.05569966]
[1735763235355,1.017,708.06,707.7,1.05569966]
[1735763235657,0.978,708.05,707.7,1.05569966]
[1735763236358,0.978,708.05,707.67,1.05569966]